[Event "Schack-SM 2022: Mastarklassen"]
[Site "Fyrishov, Idrottsgatan 2, Uppsala, Sweden"]
[Date "2022.07.05"]
[Round "4.9"]
[White "Sundin, Emanuel"]
[Black "Bjorkman, Filip"]
[Result "1-0"]
[TimeControl "90 minutes for 40 moves + 30 minutes for the rest of the game + 30 seconds per move from move one."]
[WhiteFideId "1719173"]
[BlackFideId "1734970"]
[WhiteElo "2160"]
[BlackElo "2066"]

1. e4 {[%clk 01:30:57]} {[%emt 00:00:02]} c5 {[%clk 01:26:36]} {[%emt
00:04:26]} 2. Nc3 {[%clk 01:30:18]} {[%emt 00:01:09]} Nc6 {[%clk 01:26:48]}
{[%emt 00:00:18]} 3. Bb5 {[%clk 01:30:09]} {[%emt 00:00:39]} g6 {[%clk
01:24:59]} {[%emt 00:02:18]} 4. Bxc6 {[%clk 01:30:21]} {[%emt 00:00:20]} dxc6
{[%clk 01:23:58]} {[%emt 00:01:31]} 5. d3 {[%clk 01:29:14]} {[%emt 00:01:37]}
e5 {[%clk 01:23:30]} {[%emt 00:00:58]} 6. f4 {[%clk 01:27:23]} {[%emt
00:02:20]} exf4 {[%clk 01:21:10]} {[%emt 00:02:50]} 7. Bxf4 {[%clk 01:24:25]}
{[%emt 00:03:28]} Bg7 {[%clk 01:21:33]} {[%emt 00:00:08]} 8. Nf3 {[%clk
01:22:46]} {[%emt 00:02:08]} Ne7 {[%clk 01:21:27]} {[%emt 00:00:37]} 9. O-O
{[%clk 01:21:50]} {[%emt 00:01:25]} O-O {[%clk 01:21:43]} {[%emt 00:00:14]} 10.
Qd2 {[%clk 01:20:30]} {[%emt 00:01:50]} c4 {[%clk 01:14:35]} {[%emt 00:07:39]}
11. d4 {[%clk 01:15:02]} {[%emt 00:05:58]} Bg4 {[%clk 01:13:27]} {[%emt
00:01:37]} 12. Ne5 {[%clk 01:12:58]} {[%emt 00:02:35]} Be6 {[%clk 01:13:49]}
{[%emt 00:00:09]} 13. Rad1 {[%clk 01:05:29]} {[%emt 00:07:59]} f6 {[%clk
01:07:54]} {[%emt 00:06:25]} 14. Nf3 {[%clk 01:05:40]} {[%emt 00:00:19]} f5
{[%clk 01:08:13]} {[%emt 00:00:11]} 15. Ng5 {[%clk 00:42:30]} {[%emt 00:23:39]}
Bc8 {[%clk 00:59:06]} {[%emt 00:09:37]} 16. Kh1 {[%clk 00:41:40]} {[%emt
00:01:19]} h6 {[%clk 00:55:34]} {[%emt 00:04:02]} 17. Nf3 {[%clk 00:41:05]}
{[%emt 00:01:06]} g5 {[%clk 00:52:45]} {[%emt 00:03:19]} 18. Be5 {[%clk
00:38:10]} {[%emt 00:03:25]} fxe4 {[%clk 00:52:44]} {[%emt 00:00:31]} 19. Nxe4
{[%clk 00:33:20]} {[%emt 00:05:20]} Bg4 {[%clk 00:46:16]} {[%emt 00:06:57]} 20.
Bxg7 {[%clk 00:29:41]} {[%emt 00:04:09]} Kxg7 {[%clk 00:43:26]} {[%emt
00:03:21]} 21. Nexg5 {[%clk 00:27:08]} {[%emt 00:03:03]} Qd5 {[%clk 00:40:55]}
{[%emt 00:03:01]} 22. Rde1 {[%clk 00:23:36]} {[%emt 00:04:02]} Ng6 {[%clk
00:36:35]} {[%emt 00:04:50]} 23. h3 {[%clk 00:17:27]} {[%emt 00:06:39]} Bf5
{[%clk 00:35:14]} {[%emt 00:01:51]} 24. Ne5 {[%clk 00:14:08]} {[%emt 00:03:48]}
hxg5 {[%clk 00:20:18]} {[%emt 00:15:25]} 25. Qxg5 {[%clk 00:14:20]} {[%emt
00:00:18]} Bxc2 {[%clk 00:16:50]} {[%emt 00:04:00]} 26. h4 {[%clk 00:14:17]}
{[%emt 00:00:33]} Qd8 {[%clk 00:15:02]} {[%emt 00:02:19]} 27. Rxf8 {[%clk
00:13:54]} {[%emt 00:00:52]} Kxf8 {[%clk 00:02:05]} {[%emt 00:13:27]} 28. Nxg6+
{[%clk 00:07:56]} {[%emt 00:06:28]} Bxg6 {[%clk 00:02:23]} {[%emt 00:00:12]} 29.
Qh6+ {[%clk 00:07:45]} {[%emt 00:00:40]} Kf7 {[%clk 00:01:42]} {[%emt
00:01:12]} 30. Rf1+ {[%clk 00:07:51]} {[%emt 00:00:23]} Ke7 {[%clk 00:01:16]}
{[%emt 00:00:56]} 31. Qg7+ {[%clk 00:07:18]} {[%emt 00:01:03]} Kd6 {[%clk
00:01:26]} {[%emt 00:00:21]} 32. Qxg6+ {[%clk 00:04:11]} {[%emt 00:03:37]} Kc7
{[%clk 00:01:43]} {[%emt 00:00:12]} 33. Rf7+ {[%clk 00:01:32]} {[%emt
00:03:09]} Kb6 {[%clk 00:02:02]} {[%emt 00:00:12]} 34. Qh7 {[%clk 00:01:00]}
{[%emt 00:01:02]} Rb8 {[%clk 00:02:08]} {[%emt 00:00:24]} 35. Qe4 {[%clk
00:00:42]} {[%emt 00:00:48]} Qg8 {[%clk 00:01:40]} {[%emt 00:00:57]} 36. Qf5
{[%clk 00:00:46]} {[%emt 00:00:26]} Ka6 {[%clk 00:01:31]} {[%emt 00:00:39]} 37.
b4 {[%clk 00:00:45]} {[%emt 00:00:32]} cxb3 {[%clk 00:01:28]} {[%emt 00:00:33]}
38. axb3 {[%clk 00:00:55]} {[%emt 00:00:20]} Qg3 {[%clk 00:01:31]} {[%emt
00:00:27]} 39. Qf1+ {[%clk 00:00:35]} {[%emt 00:00:49]} Kb6 {[%clk 00:01:33]}
{[%emt 00:00:29]} 40. Qf4 {[%clk 00:00:33]} {[%emt 00:00:32]} Qe1+ {[%clk
00:00:50]} {[%emt 00:01:13]} 41. Kh2 {[%clk 00:28:08]} {[%emt 00:02:54]} Rc8
{[%clk 00:26:11]} {[%emt 00:05:10]} 42. Qg5 {[%clk 00:23:29]} {[%emt 00:05:09]}
Re8 {[%clk 00:22:05]} {[%emt 00:04:35]} 43. Qg3 {[%clk 00:16:42]} {[%emt
00:07:18]} Qe4 {[%clk 00:20:44]} {[%emt 00:01:51]} 44. Qc7+ {[%clk 00:16:38]}
{[%emt 00:00:35]} Ka6 {[%clk 00:21:06]} {[%emt 00:00:08]} 45. Qxb7+ {[%clk
00:16:30]} {[%emt 00:00:37]} Ka5 {[%clk 00:21:32]} {[%emt 00:00:05]} 46. Qxa7+
{[%clk 00:16:39]} {[%emt 00:00:21]} Kb4 {[%clk 00:21:57]} {[%emt 00:00:04]} 47.
Qc5+ {[%clk 00:16:35]} {[%emt 00:00:34]} 1-0

[Event "Schack-SM 2022: Mastarklassen"]
[Site "Fyrishov, Idrottsgatan 2, Uppsala, Sweden"]
[Date "2022.07.05"]
[Round "4.10"]
[White "Dingertz, Erik"]
[Black "Styf, Josef"]
[Result "0-1"]
[TimeControl "90 minutes for 40 moves + 30 minutes for the rest of the game + 30 seconds per move from move one."]
[WhiteFideId "1741578"]
[BlackFideId "1708279"]
[WhiteElo "2021"]
[BlackElo "2048"]

1. c4 {[%clk 01:04:47]} Nf6 {[%clk 01:26:17]} 2. g3 {[%clk 01:04:47]} g6 {[%clk
01:26:17]} 3. Bg2 {[%clk 01:04:47]} Bg7 {[%clk 01:26:17]} 4. Nc3 {[%clk
01:04:47]} O-O {[%clk 01:26:17]} 5. Rb1 {[%clk 01:04:47]} d6 {[%clk 01:26:17]}
6. b4 {[%clk 01:04:47]} e5 {[%clk 01:26:17]} 7. d3 {[%clk 01:04:47]} c6 {[%clk
01:26:17]} 8. Nf3 {[%clk 01:04:47]} Re8 {[%clk 01:26:17]} 9. b5 {[%clk
01:04:47]} Bf5 {[%clk 01:26:17]} 10. e4 {[%clk 01:04:47]} Bg4 {[%clk 01:26:17]}
11. bxc6 {[%clk 01:04:47]} bxc6 {[%clk 01:26:17]} 12. Qa4 {[%clk 01:04:47]} Qc7
{[%clk 01:26:17]} 13. Be3 {[%clk 01:04:47]} Nbd7 {[%clk 01:26:17]} 14. O-O
{[%clk 01:04:47]} Nc5 {[%clk 01:26:17]} 15. Bxc5 {[%clk 01:04:47]} dxc5 {[%clk
01:26:17]} 16. Rb3 {[%clk 01:04:47]} Red8 {[%clk 01:26:17]} 17. Rfb1 {[%clk
01:04:47]} Rxd3 {[%clk 01:26:17]} 18. Ne1 {[%clk 01:04:47]} Rd2 {[%clk
01:26:17]} 19. Qa3 {[%clk 01:04:47]} Qd6 {[%clk 01:26:17]} 20. Na4 {[%clk
01:04:47]} Bd1 {[%clk 01:26:17]} 21. R3b2 {[%clk 01:04:47]} Qd4 {[%clk
01:26:17]} 22. Rxd2 {[%clk 01:04:47]} Qxd2 {[%clk 01:26:17]} 23. Nf3 {[%clk
01:04:47]} Qc2 {[%clk 01:26:17]} 24. Nc3 {[%clk 01:04:47]} Nxe4 {[%clk
01:26:17]} 25. Rxd1 {[%clk 01:04:47]} Qxf2+ {[%clk 01:26:17]} 26. Kh1 {[%clk
01:04:47]} Qe3 {[%clk 01:26:17]} 27. Rf1 {[%clk 01:04:47]} Qxc3 {[%clk
01:26:17]} 28. Qa6 {[%clk 01:04:47]} Qe3 {[%clk 01:26:17]} 29. Qxc6 {[%clk
01:04:47]} Rf8 {[%clk 01:26:17]} 30. Nxe5 {[%clk 01:04:47]} Nf2+ {[%clk
01:26:17]} 31. Rxf2 {[%clk 01:04:47]} Qxf2 {[%clk 01:26:17]} 32. Nd3 {[%clk
01:04:47]} Qxa2 {[%clk 01:26:17]} 33. Bd5 {[%clk 01:04:47]} Qb1+ {[%clk
01:26:17]} 0-1

[Event "Schack-SM 2022: Mastarklassen"]
[Site "Fyrishov, Idrottsgatan 2, Uppsala, Sweden"]
[Date "2022.07.05"]
[Round "4.1"]
[White "Malmstig, Erik"]
[Black "Lind, Jan-Olov"]
[Result "0-1"]
[TimeControl "90 minutes for 40 moves + 30 minutes for the rest of the game + 30 seconds per move from move one."]
[WhiteTitle "FM"]
[WhiteFideId "1702866"]
[BlackFideId "1701193"]
[WhiteElo "2204"]
[BlackElo "2173"]

1. d4 {[%clk 01:30:46]} {[%emt 00:00:06]} g6 {[%clk 01:29:33]} {[%emt
00:01:33]} 2. c4 {[%clk 01:30:46]} {[%emt 00:00:29]} Nf6 {[%clk 01:28:55]}
{[%emt 00:01:08]} 3. Nc3 {[%clk 01:30:51]} {[%emt 00:00:26]} Bg7 {[%clk
01:29:17]} {[%emt 00:00:08]} 4. e4 {[%clk 01:31:11]} {[%emt 00:00:09]} d6
{[%clk 01:29:40]} {[%emt 00:00:08]} 5. Nge2 {[%clk 01:31:30]} {[%emt 00:00:10]}
O-O {[%clk 01:28:58]} {[%emt 00:01:13]} 6. Ng3 {[%clk 01:28:07]} {[%emt
00:03:52]} e5 {[%clk 01:28:47]} {[%emt 00:00:41]} 7. d5 {[%clk 01:28:19]}
{[%emt 00:00:19]} a5 {[%clk 01:29:00]} {[%emt 00:00:17]} 8. Be2 {[%clk
01:28:24]} {[%emt 00:00:24]} Na6 {[%clk 01:29:17]} {[%emt 00:00:15]} 9. h4
{[%clk 01:28:38]} {[%emt 00:00:16]} h5 {[%clk 01:29:13]} {[%emt 00:00:34]} 10.
Bg5 {[%clk 01:28:35]} {[%emt 00:00:32]} Qe8 {[%clk 01:24:27]} {[%emt 00:05:16]}
11. Qd2 {[%clk 01:28:11]} {[%emt 00:00:55]} Nh7 {[%clk 01:24:09]} {[%emt
00:00:48]} 12. Bh6 {[%clk 01:20:59]} {[%emt 00:07:42]} Qe7 {[%clk 01:18:50]}
{[%emt 00:05:49]} 13. Bxg7 {[%clk 01:19:29]} {[%emt 00:02:01]} Kxg7 {[%clk
01:19:10]} {[%emt 00:00:10]} 14. O-O-O {[%clk 01:18:03]} {[%emt 00:01:56]} Nc5
{[%clk 01:11:59]} {[%emt 00:07:41]} 15. Rdg1 {[%clk 01:07:30]} {[%emt
00:11:03]} Qf6 {[%clk 01:04:19]} {[%emt 00:08:10]} 16. Bxh5 {[%clk 00:51:14]}
{[%emt 00:16:46]} Qf4 {[%clk 00:50:45]} {[%emt 00:14:04]} 17. Be2 {[%clk
00:46:22]} {[%emt 00:05:22]} Qxf2 {[%clk 00:49:27]} {[%emt 00:01:48]} 18. h5
{[%clk 00:45:34]} {[%emt 00:01:18]} Qxg3 {[%clk 00:41:47]} {[%emt 00:08:10]} 19.
hxg6 {[%clk 00:45:35]} {[%emt 00:00:29]} Qxg6 {[%clk 00:41:55]} {[%emt
00:00:22]} 20. Rh5 {[%clk 00:44:53]} {[%emt 00:01:12]} f6 {[%clk 00:33:44]}
{[%emt 00:08:41]} 21. Rgh1 {[%clk 00:42:50]} {[%emt 00:02:31]} Ng5 {[%clk
00:33:28]} {[%emt 00:00:47]} 22. Qe1 {[%clk 00:40:56]} {[%emt 00:02:23]} Bg4
{[%clk 00:26:27]} {[%emt 00:07:31]} 23. Rh6 {[%clk 00:38:29]} {[%emt 00:02:58]}
Qxh6 {[%clk 00:26:05]} {[%emt 00:00:53]} 24. Rxh6 {[%clk 00:38:03]} {[%emt
00:00:56]} Bxe2 {[%clk 00:25:36]} {[%emt 00:00:59]} 25. Qh4 {[%clk 00:36:43]}
{[%emt 00:01:50]} Rh8 {[%clk 00:22:45]} {[%emt 00:03:20]} 26. Rxh8 {[%clk
00:36:33]} {[%emt 00:00:41]} Rxh8 {[%clk 00:23:00]} {[%emt 00:00:15]} 27. Qg3
{[%clk 00:36:28]} {[%emt 00:00:33]} Rh1+ {[%clk 00:20:07]} {[%emt 00:03:23]} 28.
Kd2 {[%clk 00:34:17]} {[%emt 00:02:42]} Bh5 {[%clk 00:20:21]} {[%emt 00:00:16]}
29. Kc2 {[%clk 00:29:08]} {[%emt 00:05:39]} Kf7 {[%clk 00:19:56]} {[%emt
00:00:55]} 30. Qe3 {[%clk 00:22:27]} {[%emt 00:07:11]} Ke7 {[%clk 00:18:26]}
{[%emt 00:01:59]} 31. b3 {[%clk 00:20:22]} {[%emt 00:02:36]} Bg6 {[%clk
00:14:36]} {[%emt 00:04:20]} 32. Kb2 {[%clk 00:17:49]} {[%emt 00:03:02]} b6
{[%clk 00:14:36]} {[%emt 00:00:31]} 33. Qg3 {[%clk 00:14:15]} {[%emt 00:04:03]}
Ncxe4 {[%clk 00:12:36]} {[%emt 00:02:30]} 34. Nxe4 {[%clk 00:11:59]} {[%emt
00:02:47]} Bxe4 {[%clk 00:12:58]} {[%emt 00:00:07]} 35. Qg4 {[%clk 00:11:49]}
{[%emt 00:00:40]} Kd8 {[%clk 00:13:19]} {[%emt 00:00:09]} 36. c5 {[%clk
00:08:45]} {[%emt 00:03:35]} Rh2 {[%clk 00:10:38]} {[%emt 00:03:09]} 37. Qd1
{[%clk 00:08:27]} {[%emt 00:00:48]} Rxg2+ {[%clk 00:10:46]} {[%emt 00:00:22]}
38. Ka3 {[%clk 00:08:37]} {[%emt 00:00:20]} dxc5 {[%clk 00:06:16]} {[%emt
00:05:00]} 39. Ka4 {[%clk 00:03:40]} {[%emt 00:05:28]} Kd7 {[%clk 00:05:03]}
{[%emt 00:01:44]} 40. Qf1 {[%clk 00:02:25]} {[%emt 00:01:44]} Rxa2+ {[%clk
00:04:06]} {[%emt 00:01:28]} 41. Kb5 {[%clk 00:02:45]} {[%emt 00:00:09]} Rd2
{[%clk 00:02:22]} {[%emt 00:02:14]} 0-1

[Event "Schack-SM 2022: Mastarklassen"]
[Site "Fyrishov, Idrottsgatan 2, Uppsala, Sweden"]
[Date "2022.07.04"]
[Round "3.1"]
[White "Lind, Jan-Olov"]
[Black "Jogstad, Daniel"]
[Result "1-0"]
[TimeControl "90 minutes for 40 moves + 30 minutes for the rest of the game + 30 seconds per move from move one."]
[BlackTitle "CM"]
[WhiteFideId "1701193"]
[BlackFideId "1718959"]
[WhiteElo "2173"]
[BlackElo "2057"]

1. e4 {[%clk 01:30:55]} {[%emt 00:00:04]} c5 {[%clk 01:30:55]} {[%emt
00:00:06]} 2. Nf3 {[%clk 01:31:16]} {[%emt 00:00:09]} Nc6 {[%clk 01:31:19]}
{[%emt 00:00:06]} 3. d3 {[%clk 01:31:36]} {[%emt 00:00:09]} g6 {[%clk
01:31:36]} {[%emt 00:00:14]} 4. g3 {[%clk 01:32:01]} {[%emt 00:00:05]} Bg7
{[%clk 01:32:01]} {[%emt 00:00:04]} 5. Bg2 {[%clk 01:32:26]} {[%emt 00:00:05]}
e5 {[%clk 01:32:28]} {[%emt 00:00:04]} 6. O-O {[%clk 01:32:47]} {[%emt
00:00:09]} Nge7 {[%clk 01:32:55]} {[%emt 00:00:03]} 7. c3 {[%clk 01:33:09]}
{[%emt 00:00:08]} O-O {[%clk 01:32:54]} {[%emt 00:00:30]} 8. a3 {[%clk
01:33:34]} {[%emt 00:00:06]} d5 {[%clk 01:33:14]} {[%emt 00:00:10]} 9. b4
{[%clk 01:31:25]} {[%emt 00:02:38]} c4 {[%clk 01:33:39]} {[%emt 00:00:06]} 10.
exd5 {[%clk 01:14:58]} {[%emt 00:16:57]} Qxd5 {[%clk 01:34:02]} {[%emt
00:00:07]} 11. Nd4 {[%clk 01:05:16]} {[%emt 00:10:11]} exd4 {[%clk 01:34:14]}
{[%emt 00:00:18]} 12. Bxd5 {[%clk 01:00:03]} {[%emt 00:05:42]} Nxd5 {[%clk
01:34:39]} {[%emt 00:00:06]} 13. dxc4 {[%clk 00:57:44]} {[%emt 00:02:49]} Nxc3
{[%clk 01:34:11]} {[%emt 00:00:58]} 14. Nxc3 {[%clk 00:54:54]} {[%emt
00:03:19]} dxc3 {[%clk 01:34:35]} {[%emt 00:00:07]} 15. Be3 {[%clk 00:48:53]}
{[%emt 00:06:31]} Be6 {[%clk 01:34:59]} {[%emt 00:00:07]} 16. Rc1 {[%clk
00:39:16]} {[%emt 00:10:06]} Bxc4 {[%clk 01:28:43]} {[%emt 00:06:47]} 17. Rxc3
{[%clk 00:37:53]} {[%emt 00:01:52]} Bxc3 {[%clk 01:26:55]} {[%emt 00:02:18]} 18.
Qc1 {[%clk 00:37:54]} {[%emt 00:00:29]} Bxf1 {[%clk 01:17:17]} {[%emt
00:10:08]} 19. Qxc3 {[%clk 00:38:05]} {[%emt 00:00:18]} Be2 {[%clk 01:14:39]}
{[%emt 00:03:08]} 20. Qf6 {[%clk 00:34:26]} {[%emt 00:04:09]} Rfd8 {[%clk
00:57:04]} {[%emt 00:18:05]} 21. f3 {[%clk 00:19:49]} {[%emt 00:15:06]} Kf8
{[%clk 00:57:31]} {[%emt 00:00:04]} 22. Qc3 {[%clk 00:16:55]} {[%emt 00:03:23]}
Re8 {[%clk 00:30:20]} {[%emt 00:27:41]} 23. Bh6+ {[%clk 00:13:42]} {[%emt
00:03:43]} Ke7 {[%clk 00:30:46]} {[%emt 00:00:05]} 24. b5 {[%clk 00:13:55]}
{[%emt 00:00:17]} Bxb5 {[%clk 00:15:27]} {[%emt 00:15:49]} 25. Qc5+ {[%clk
00:14:18]} {[%emt 00:00:06]} Kd7 {[%clk 00:15:51]} {[%emt 00:00:06]} 26. Qxb5
{[%clk 00:14:42]} {[%emt 00:00:06]} b6 {[%clk 00:16:13]} {[%emt 00:00:09]} 27.
Qd5+ {[%clk 00:14:46]} {[%emt 00:00:25]} Kc7 {[%clk 00:16:29]} {[%emt
00:00:14]} 28. Bf4+ {[%clk 00:15:06]} {[%emt 00:00:10]} 1-0

[Event "Schack-SM 2022: Mastarklassen"]
[Site "Fyrishov, Idrottsgatan 2, Uppsala, Sweden"]
[Date "2022.07.04"]
[Round "3.2"]
[White "Crevatin, Leo"]
[Black "Malmstig, Erik"]
[Result "1/2-1/2"]
[TimeControl "90 minutes for 40 moves + 30 minutes for the rest of the game + 30 seconds per move from move one."]
[WhiteTitle "CM"]
[BlackTitle "FM"]
[WhiteFideId "1726307"]
[BlackFideId "1702866"]
[WhiteElo "2259"]
[BlackElo "2204"]

1. d4 {[%clk 01:30:59]} Nf6 {[%clk 01:30:51]} {[%emt 00:00:09]} 2. c4 {[%clk
01:31:27]} {[%emt 00:00:02]} e6 {[%clk 01:31:09]} {[%emt 00:00:12]} 3. Nc3
{[%clk 01:31:50]} {[%emt 00:00:07]} Bb4 {[%clk 01:31:31]} {[%emt 00:00:08]} 4.
a3 {[%clk 01:28:54]} {[%emt 00:03:27]} Bxc3+ {[%clk 01:28:23]} {[%emt
00:03:38]} 5. bxc3 {[%clk 01:29:22]} {[%emt 00:00:02]} O-O {[%clk 01:28:30]}
{[%emt 00:00:23]} 6. e3 {[%clk 01:29:37]} {[%emt 00:00:15]} d6 {[%clk
01:28:27]} {[%emt 00:00:32]} 7. Bd3 {[%clk 01:29:03]} {[%emt 00:01:04]} e5
{[%clk 01:28:29]} {[%emt 00:00:28]} 8. Ne2 {[%clk 01:27:04]} {[%emt 00:02:29]}
Nc6 {[%clk 01:27:03]} {[%emt 00:01:56]} 9. Ng3 {[%clk 01:26:44]} {[%emt
00:00:49]} Re8 {[%clk 01:26:36]} {[%emt 00:00:57]} 10. O-O {[%clk 01:24:12]}
{[%emt 00:03:02]} Bg4 {[%clk 01:21:25]} {[%emt 00:05:41]} 11. Qc2 {[%clk
01:17:49]} {[%emt 00:06:54]} Qe7 {[%clk 01:20:47]} {[%emt 00:01:07]} 12. f3
{[%clk 01:17:05]} {[%emt 00:01:14]} Bd7 {[%clk 01:20:34]} {[%emt 00:00:43]} 13.
Qf2 {[%clk 01:05:46]} {[%emt 00:11:50]} Na5 {[%clk 01:16:36]} {[%emt 00:04:28]}
14. Rb1 {[%clk 01:03:02]} {[%emt 00:03:14]} b6 {[%clk 01:15:39]} {[%emt
00:01:27]} 15. e4 {[%clk 01:01:53]} {[%emt 00:01:38]} c5 {[%clk 01:14:46]}
{[%emt 00:01:23]} 16. f4 {[%clk 01:00:05]} {[%emt 00:02:19]} Ng4 {[%clk
01:11:43]} {[%emt 00:03:33]} 17. Qf3 {[%clk 00:57:22]} {[%emt 00:03:13]} cxd4
{[%clk 01:07:41]} {[%emt 00:04:32]} 18. cxd4 {[%clk 00:56:32]} {[%emt
00:01:20]} Nc6 {[%clk 01:06:42]} {[%emt 00:01:29]} 19. f5 {[%clk 00:51:16]}
{[%emt 00:05:46]} Qh4 {[%clk 01:02:29]} {[%emt 00:04:43]} 20. h3 {[%clk
00:50:58]} {[%emt 00:00:48]} Nf6 {[%clk 01:02:44]} {[%emt 00:00:15]} 21. d5
{[%clk 00:49:52]} {[%emt 00:01:37]} Nd4 {[%clk 01:02:04]} {[%emt 00:01:10]} 22.
Qf2 {[%clk 00:49:27]} {[%emt 00:00:54]} Rac8 {[%clk 00:58:24]} {[%emt
00:04:10]} 23. Be3 {[%clk 00:47:51]} {[%emt 00:02:07]} b5 {[%clk 00:55:52]}
{[%emt 00:03:03]} 24. cxb5 {[%clk 00:45:08]} {[%emt 00:03:13]} Rc3 {[%clk
00:51:44]} {[%emt 00:04:38]} 25. Rfd1 {[%clk 00:43:39]} {[%emt 00:01:59]} Rxa3
{[%clk 00:48:48]} {[%emt 00:03:26]} 26. Bxd4 {[%clk 00:37:09]} {[%emt
00:07:00]} exd4 {[%clk 00:48:40]} {[%emt 00:00:38]} 27. Ra1 {[%clk 00:36:55]}
{[%emt 00:00:44]} Rb3 {[%clk 00:40:43]} {[%emt 00:08:27]} 28. Nh1 {[%clk
00:34:19]} {[%emt 00:03:06]} Qg5 {[%clk 00:36:39]} {[%emt 00:04:34]} 29. Qxd4
{[%clk 00:33:55]} {[%emt 00:00:54]} Nh5 {[%clk 00:36:03]} {[%emt 00:01:05]} 30.
Ra2 {[%clk 00:29:48]} {[%emt 00:04:38]} Nf4 {[%clk 00:34:21]} {[%emt 00:02:12]}
31. Kh2 {[%clk 00:29:17]} {[%emt 00:01:01]} h6 {[%clk 00:23:50]} {[%emt
00:11:02]} 32. Rf2 {[%clk 00:25:20]} {[%emt 00:04:26]} Nh5 {[%clk 00:19:54]}
{[%emt 00:04:25]} 33. Qxa7 {[%clk 00:23:19]} {[%emt 00:02:32]} Nf6 {[%clk
00:13:56]} {[%emt 00:06:27]} 34. b6 {[%clk 00:18:25]} {[%emt 00:05:24]} Qe3
{[%clk 00:13:08]} {[%emt 00:01:18]} 35. Rf3 {[%clk 00:18:48]} {[%emt 00:00:07]}
Qd4 {[%clk 00:09:55]} {[%emt 00:03:43]} 36. Ng3 {[%clk 00:16:56]} {[%emt
00:02:23]} h5 {[%clk 00:07:29]} {[%emt 00:02:55]} 37. Bc2 {[%clk 00:12:43]}
{[%emt 00:04:43]} Qxb6 {[%clk 00:07:38]} {[%emt 00:00:21]} 38. Qxb6 {[%clk
00:12:52]} {[%emt 00:00:21]} Rxb6 {[%clk 00:08:03]} {[%emt 00:00:05]} 39. Rf4
{[%clk 00:09:27]} {[%emt 00:03:54]} Rb2 {[%clk 00:05:51]} {[%emt 00:02:42]} 40.
Bd3 {[%clk 00:09:05]} {[%emt 00:00:52]} Ra8 {[%clk 00:03:25]} {[%emt 00:02:56]}
41. Nf1 {[%clk 00:27:53]} {[%emt 00:11:42]} Ra3 {[%clk 00:23:03]} {[%emt
00:10:53]} 42. Rb1 {[%clk 00:23:54]} {[%emt 00:04:28]} Rxb1 43. Bxb1 {[%clk
00:24:23]} Rb3 {[%clk 00:18:48]} {[%emt 00:00:31]} 44. Bc2 {[%clk 00:21:44]}
{[%emt 00:03:09]} Rc3 {[%clk 00:16:37]} {[%emt 00:02:41]} 45. Bd1 {[%clk
00:18:42]} {[%emt 00:03:31]} Rc4 {[%clk 00:14:44]} {[%emt 00:02:25]} 46. Ng3
{[%clk 00:15:19]} {[%emt 00:03:52]} Nxd5 {[%clk 00:12:02]} {[%emt 00:03:12]} 47.
Rf2 {[%clk 00:13:42]} {[%emt 00:02:07]} Nf6 {[%clk 00:07:48]} {[%emt 00:04:44]}
48. Bxh5 {[%clk 00:13:45]} {[%emt 00:00:27]} Nxe4 {[%clk 00:07:18]} {[%emt
00:01:00]} 49. Nxe4 {[%clk 00:14:09]} {[%emt 00:00:06]} Rxe4 {[%clk 00:07:39]}
{[%emt 00:00:09]} 50. Rd2 {[%clk 00:14:15]} {[%emt 00:00:22]} Bxf5 {[%clk
00:07:53]} {[%emt 00:00:18]} 1/2-1/2